bitfinex/quotes_ETHUSD_20250602
["timestamp","ask_amount","ask_price","bid_price","bid_amount"]
[1748878481779,3.93799363,2539.4,2539.1,0.02]
[1748878481979,4.74833607,2539.3,2539.1,0.02]
[1748878482211,0.81023771,2539.3,2539.1,0.02]
[1748878482436,4.71484826,2539.2,2539.1,0.02]
[1748878482703,12.71484826,2539.2,2539.1,0.02]
[1748878484466,0.19453588,2539.4,2539.1,0.02]
[1748878484669,0.2266,2539.5,2539.1,0.02]
[1748878484971,3.93758622,2539.7,2539.2,4.598]
[1748878485215,4.16395849,2539.8,2539.2,5.3525]
[1748878485376,2.33149988,2539.8,2539.2,0.7545]
[1748878485697,2.33149988,2539.8,2539.1,0.02]
[1748878485698,3.93824826,2539.2,2539.1,0.02]
[1748878486221,3.93882135,2538.9,2538.4,4.598]
[1748878486420,4.48859494,2539.0,2538.5,3.93920903]
[1748878486564,3.93871752,2538.9,2538.4,8.53747235]
[1748878486903,4.48863768,2539.0,2538.5,3.93932413]
[1748878487104,1.39269508,2539.0,2538.5,3.93932413]
[1748878487325,1.39269508,2539.0,2538.4,4.598]
[1748878487527,0.55,2539.0,2538.4,8.53740912]
[1748878487688,3.93873354,2538.9,2538.4,8.53740912]
[1748878488022,0.39052345,2538.9,2538.4,8.53740912]
[1748878488215,4.48860719,2539.0,2538.4,8.53740912]
[1748878488420,4.48860719,2539.0,2538.5,3.9393217]
[1748878488727,0.84270149,2538.9,2538.4,3.93938265]
[1748878489027,4.78148435,2538.9,2538.3,0.7506]
[1748878489226,0.84270149,2538.9,2538.5,4.596]
[1748878489389,0.84270149,2538.9,2538.5,8.5353222]
[1748878489586,0.84270149,2538.9,2538.6,3.93914837]
[1748878489819,3.93853634,2539.1,2538.5,8.53524841]
[1748878490132,3.93878311,2538.9,2538.5,4.596]
[1748878490543,0.55,2539.0,2538.5,4.596]
[1748878490699,0.39598578,2539.1,2539.0,3.93855848]
[1748878490886,2.10489988,2539.8,2539.1,3.93840337]
[1748878490887,2.33149988,2539.8,2539.1,3.93840337]
[1748878491093,3.9376412,2539.6,2539.1,3.93840337]
[1748878491316,0.39376412,2539.5,2539.1,3.93840337]
[1748878491629,0.39376412,2539.5,2539.0,4.596]
[1748878491828,3.93818565,2539.3,2539.0,4.596]
[1748878492200,3.93804498,2539.4,2539.0,4.596]
[1748878492525,10.33149988,2539.8,2538.8,4.74012393]
[1748878492728,10.33149988,2539.8,2539.1,4.595]
[1748878492729,3.93803027,2539.4,2539.1,4.595]
[1748878493027,0.78758231,2539.3,2539.1,4.595]
[1748878493524,4.72571888,2539.3,2538.8,4.74012393]
[1748878493724,0.78758231,2539.3,2538.9,4.594]
[1748878493889,3.93832761,2539.2,2538.9,4.594]
[1748878494095,3.93849435,2539.1,2538.6,8.814]
[1748878494317,3.93849435,2539.1,2538.7,4.594]
[1748878494318,3.93848253,2539.1,2538.7,4.594]
[1748878494504,4.48829232,2539.2,2538.7,3.93899834]
[1748878494822,3.93843665,2539.1,2538.6,17.34709259]
[1748878495130,3.9385739,2539.0,2538.6,0.814]
[1748878495303,0.865317,2539.1,2538.1,3.95982338]
[1748878495304,3.93929578,2538.6,2538.2,4.593]
[1748878495623,11.52551321,2538.8,2538.2,8.53270272]
[1748878495788,3.9390337,2538.7,2538.2,8.53270272]
[1748878496328,3.93910235,2538.7,2538.2,4.593]
[1748878496492,3.93910235,2538.7,2538.2,8.53279705]
[1748878496691,3.93910235,2538.7,2538.2,4.593]
[1748878496996,5.56322389,2538.7,2538.2,4.593]
[1748878497197,0.2266,2538.6,2538.1,0.02]
[1748878497397,4.16587369,2538.6,2538.1,4.612]
[1748878497608,3.93953101,2538.4,2538.1,4.612]
[1748878497804,3.93971425,2538.3,2538.2,4.592]
[1748878498000,3.93971425,2538.3,2538.1,0.02]
[1748878498001,3.93979985,2538.2,2538.1,4.612]
[1748878498225,1.18136184,2538.3,2538.1,4.612]
[1748878498403,5.12109454,2538.3,2538.1,4.612]
[1748878498600,3.93979985,2538.2,2538.1,0.02]
[1748878498804,12.4325197,2538.2,2538.1,0.02]
[1748878500044,12.9825197,2538.2,2538.1,0.02]
[1748878500242,13.2091197,2538.2,2538.1,0.02]
[1748878501508,5.39588929,2538.2,2538.1,0.02]
[1748878502546,0.90608944,2538.2,2538.1,0.02]
[1748878502749,0.39344094,2538.3,2538.2,3.93979985]
[1748878502945,3.93913709,2538.7,2538.2,4.76099985]
[1748878503120,3.93913709,2538.7,2538.2,4.76098347]
[1748878503121,3.93913202,2538.7,2538.2,4.76098347]
[1748878503455,7.58663041,2538.4,2538.1,0.02]
[1748878503646,3.93979985,2538.2,2538.1,4.61]
[1748878503849,4.69838505,2538.3,2538.1,4.61]
[1748878504208,4.69838505,2538.3,2538.1,0.02]
[1748878504404,0.75866304,2538.3,2538.1,4.61]
[1748878504709,3.93925279,2538.6,2538.1,4.61]
[1748878504908,3.93897697,2538.8,2538.3,3.93961575]
[1748878505141,3.93897697,2538.8,2538.4,0.7802]
[1748878505342,7.81323041,2539.0,2538.5,4.59]
[1748878505546,3.93872949,2538.9,2538.5,4.59]
[1748878505862,7.81323041,2539.3,2538.6,0.03939155]
[1748878506049,11.75146597,2539.3,2538.5,9.95766132]
[1748878506347,3.93843061,2539.1,2538.5,9.91827025]
[1748878506845,0.55,2539.2,2538.6,3.93917907]
[1748878507146,3.93840438,2539.1,2538.5,9.91825415]
[1748878507350,3.93841213,2539.1,2538.5,11.382067]
[1748878507529,3.93841213,2539.1,2538.5,9.91827571]
[1748878507731,3.93848609,2539.1,2538.5,9.91827571]
[1748878508417,3.93858648,2539.0,2538.5,5.979]
[1748878508620,3.9384898,2539.1,2538.5,9.91824965]
[1748878508851,0.55,2539.2,2538.5,9.91824965]
[1748878509048,7.58663041,2539.3,2538.8,3.93878644]
[1748878509354,3.93827282,2539.2,2538.9,4.587]
[1748878509543,11.52478832,2539.3,2538.9,4.587]
[1748878509854,3.93847106,2539.1,2538.9,4.587]
[1748878510073,5.48477191,2539.1,2538.4,0.7802]
[1748878510374,3.93899731,2538.8,2538.5,4.587]
[1748878510579,3.93877899,2538.9,2538.5,4.587]
[1748878510877,1.54632883,2539.1,2538.6,4.586]
[1748878511023,8.13663041,2539.0,2538.6,4.586]
[1748878511227,12.07526463,2539.0,2538.6,4.586]
[1748878511417,12.07526463,2539.0,2538.5,3.93932702]
[1748878511777,3.93874769,2538.9,2538.4,0.7802]
[1748878511922,7.58663041,2538.7,2538.5,4.586]
[1748878512274,0.55,2539.0,2538.6,3.93915299]
[1748878512275,8.13663041,2539.0,2538.6,3.93915299]
[1748878512428,3.93847021,2539.1,2538.6,3.93915299]
[1748878512628,3.93859983,2539.0,2538.5,8.52526834]
[1748878512822,5.11365145,2539.1,2538.6,3.93917684]
[1748878513028,5.11364755,2539.1,2538.5,8.52526508]
[1748878513367,1.17517006,2539.1,2538.5,4.586]
[1748878513522,5.11364407,2539.1,2538.6,3.93908798]
[1748878514846,0.7766,2539.4,2538.5,4.586]
[1748878515053,3.9381422,2539.3,2538.7,3.9390239]
[1748878515453,3.9381422,2539.3,2538.8,3.93886119]
[1748878515622,3.9381422,2539.3,2538.9,4.584]
[1748878516136,3.93830471,2539.2,2539.0,4.584]
[1748878516465,3.93830471,2539.2,2538.4,0.7802]
[1748878516466,3.93879697,2538.9,2538.4,4.71962459]
[1748878516764,7.58663041,2538.8,2538.5,4.583]
[1748878517131,7.58663041,2538.8,2538.6,4.583]
[1748878517545,7.58663041,2538.8,2538.7,4.583]
[1748878517872,7.58663041,2538.8,2538.1,0.7783]
[1748878517873,3.93918713,2538.6,2538.1,0.7783]
[1748878518059,7.58663041,2538.5,2538.2,4.582]
[1748878518965,7.58663041,2538.5,2538.2,8.52179407]
[1748878519138,0.75866304,2538.7,2538.2,4.582]
[1748878519336,0.55,2539.0,2538.3,3.93964464]
[1748878519551,0.2266,2539.1,2538.8,3.93871387]
[1748878519767,3.93825484,2539.2,2538.8,4.582]
[1748878519967,3.93842393,2539.1,2538.8,4.582]
[1748878520153,0.78766788,2539.0,2538.8,4.582]
[1748878521251,3.93911127,2538.7,2538.4,0.8148]
[1748878521441,3.93956246,2538.4,2538.1,0.8348]
[1748878521645,11.52642721,2538.3,2538.1,0.02]
[1748878521886,13.07302618,2538.3,2538.2,4.581]
[1748878522502,9.53215486,2538.3,2538.2,4.581]
[1748878522639,13.4717995,2538.3,2538.2,4.581]
[1748878522840,4.48979985,2538.2,2538.1,0.02]
[1748878523101,2.34615994,2538.2,2538.1,4.6]
[1748878523254,8.21215589,2538.3,2538.1,4.6]
[1748878523450,7.98555589,2538.3,2538.1,4.6]
[1748878523879,7.98555589,2538.3,2538.1,0.02]
[1748878524069,0.39892548,2538.3,2538.1,4.6]
[1748878524270,3.93957356,2538.4,2538.1,4.6]
[1748878524575,1.60156246,2538.4,2538.2,4.579]
[1748878525579,4.16562305,2538.8,2538.3,3.93957657]
[1748878525886,4.16562305,2538.8,2538.3,3.93963942]
[1748878526387,3.93903658,2538.7,2538.2,5.3541]
[1748878526688,11.5263497,2538.3,2538.1,0.02]
[1748878526844,3.93979985,2538.2,2538.1,0.02]
[1748878527245,5.48640788,2538.2,2538.1,0.02]
[1748878527993,1.54660803,2538.2,2538.1,0.02]
[1748878528199,5.48640788,2538.2,2538.1,0.02]
[1748878529390,1.54660803,2538.2,2538.1,0.02]
[1748878529563,7.81323041,2538.3,2538.1,0.02]
[1748878529757,12.14326055,2538.3,2538.1,0.02]
[1748878529966,3.93979985,2538.2,2538.1,0.02]
[1748878530287,12.143346,2538.3,2538.1,0.02]
[1748878530487,13.80663049,2538.3,2538.1,4.597]
[1748878530690,9.86689274,2538.3,2538.1,4.597]
[1748878530867,13.80661276,2538.3,2538.1,4.597]
[1748878531189,13.80661276,2538.3,2538.1,3.603687]
[1748878531390,2.05366233,2538.3,2538.1,3.603687]
[1748878531687,0.39037784,2538.3,2538.1,3.603687]
[1748878531994,3.93951292,2538.4,2538.1,3.603687]
[1748878532191,3.93951292,2538.4,2537.9,3.94020684]
[1748878532354,3.93951292,2538.4,2538.0,5.361]
[1748878532547,1.6015551,2538.4,2537.8,0.7601]
[1748878532750,11.52634479,2538.3,2537.9,4.576]
[1748878533208,5.54113667,2538.4,2537.9,4.576]
[1748878533535,0.2266,2538.7,2538.2,3.93970358]
[1748878533803,3.93895442,2538.8,2538.4,0.7896]
[1748878534493,4.1653514,2538.9,2538.4,0.7896]
[1748878534793,3.93890167,2538.8,2538.4,0.7896]
[1748878534958,3.93890167,2538.8,2538.3,8.5146419]
[1748878535153,3.93890167,2538.8,2538.2,0.7889]
[1748878535154,3.93913642,2538.7,2538.2,0.7889]
[1748878535354,3.93925935,2538.6,2538.2,5.3629]
[1748878535558,3.93925935,2538.6,2538.2,4.574]
[1748878536199,3.93911455,2538.7,2538.2,4.574]
[1748878536415,3.9390239,2538.7,2538.2,4.574]
[1748878536584,5.67292534,2538.7,2538.2,8.51372641]
[1748878536785,5.67292534,2538.7,2538.2,3.93972641]
[1748878536971,3.93893497,2538.8,2538.3,3.93949711]
[1748878537347,3.93893497,2538.8,2538.2,8.51270619]
[1748878537483,3.93903779,2538.7,2538.2,8.51270619]
[1748878537661,11.75195512,2538.9,2538.4,3.93937188]
[1748878537865,11.75195512,2538.9,2538.2,4.573]
[1748878537866,0.55,2538.9,2538.5,0.7906]
[1748878538267,3.93887475,2538.8,2538.5,0.7906]
[1748878538717,3.93902572,2538.7,2538.5,0.7906]
[1748878538954,3.93900753,2538.8,2538.5,0.7906]
[1748878539256,3.93902826,2538.7,2538.5,0.7906]
[1748878539380,3.93895905,2538.8,2538.5,0.7906]
[1748878539586,11.5258757,2538.6,2538.3,0.7626]
[1748878539893,5.67192506,2538.8,2538.3,8.51159803]
[1748878540094,5.0164157,2538.9,2538.4,3.93945739]
[1748878540707,3.93897914,2538.8,2538.3,8.51156962]
[1748878541993,0.40090902,2539.6,2538.4,15.6260235]
[1748878542205,0.19207955,2540.0,2539.4,4.70453288]
[1748878542541,7.60663041,2539.9,2539.5,4.57]
[1748878542833,7.60663041,2539.9,2539.4,4.57]
[1748878542834,4.71727109,2539.8,2539.4,4.57]
[1748878543040,0.779871,2539.8,2539.4,4.57]
[1748878543532,4.71723873,2539.8,2539.4,4.57]
[1748878543785,1.006471,2539.8,2539.4,4.57]
[1748878543986,11.52432903,2539.6,2539.2,5.3925]
[1748878544132,3.93778717,2539.5,2539.2,5.3925]
[1748878544328,0.55,2539.4,2538.5,0.7744]
[1748878544527,3.93836068,2539.2,2538.6,8.50710639]
[1748878544841,0.55,2539.2,2538.7,4.86705201]
[1748878545033,0.55,2539.2,2538.5,8.7744]
[1748878545262,4.48832889,2539.2,2538.7,8.0]
[1748878545462,7.58663041,2539.0,2538.5,0.7744]
[1748878545679,7.58663041,2539.0,2538.6,3.93915017]
[1748878546254,0.55,2539.0,2538.6,3.93915017]
[1748878546450,0.2266,2539.3,2538.8,3.93885043]
[1748878546675,3.93841219,2539.1,2538.6,3.9391]
[1748878546876,4.4883018,2539.2,2538.7,4.567]
[1748878547179,0.55,2539.2,2538.7,8.50589616]
[1748878547482,0.55,2539.2,2538.8,3.93882146]
[1748878547956,4.48833017,2539.2,2538.7,4.567]
[1748878548281,0.55,2539.0,2538.4,3.93942352]
[1748878548654,3.93874156,2538.9,2538.5,4.566]
[1748878548864,4.48863273,2539.0,2538.5,8.50531081]
[1748878549182,0.55,2539.0,2538.6,3.93916796]
[1748878549364,0.55,2539.0,2538.5,8.50532411]
[1748878549555,0.55,2539.0,2538.6,3.93912672]
[1748878550675,4.48859448,2539.0,2538.5,4.565]
[1748878550848,4.48859448,2539.0,2538.5,3.9392755]
[1748878551047,4.48859448,2539.0,2538.5,4.565]
[1748878551244,0.55,2539.0,2538.5,4.565]
[1748878551448,4.48863861,2539.0,2538.5,8.50432925]
[1748878552359,6.21301248,2539.0,2538.5,8.50432925]
[1748878552562,3.93872718,2538.9,2538.5,4.565]
[1748878552780,13.7996464,2539.0,2538.5,8.50433107]
[1748878553385,9.86100428,2539.0,2538.5,8.50433107]
[1748878553580,11.75110538,2539.5,2538.6,0.7626]
[1748878553761,3.93799002,2539.4,2538.9,3.93864599]
[1748878555187,0.55,2539.4,2539.0,3.93855272]
[1748878555349,0.55,2539.4,2539.0,3.93855848]
[1748878555663,11.75102041,2539.5,2539.0,3.93844106]
[1748878555859,1.17510204,2539.4,2539.0,0.8122]
[1748878556057,8.59310141,2539.8,2539.1,8.50131011]
[1748878556254,3.9377297,2539.6,2539.1,8.50131011]
[1748878556685,3.93773109,2539.6,2539.1,4.563]
[1748878556848,3.93773109,2539.6,2539.1,8.50139938]
[1748878557179,0.78752192,2539.5,2539.1,8.50139938]
[1748878558549,0.78752192,2539.5,2539.1,4.563]
[1748878558888,4.72531418,2539.5,2539.1,4.563]
[1748878559392,0.78752192,2539.5,2539.2,3.93822304]
[1748878559686,3.93748561,2539.7,2539.2,3.93822304]
[1748878560054,0.42163852,2539.9,2539.3,0.03937898]
[1748878560364,0.42163852,2539.9,2539.5,4.74123441]
[1748878560545,0.42163852,2539.9,2539.1,3.93836206]
[1748878560750,11.52420769,2539.7,2539.2,5.3237]
[1748878560985,11.52420769,2539.7,2539.2,9.26190299]
[1748878561292,11.52411013,2539.7,2539.2,9.26187979]
[1748878561463,7.58663041,2539.7,2539.2,9.26187979]
[1748878561850,7.58663041,2539.7,2539.3,8.4970642]
[1748878562054,0.42163852,2539.9,2539.6,3.93747441]
[1748878562256,0.42163852,2539.9,2539.7,8.49645842]
[1748878562473,0.42163852,2539.9,2539.7,4.559]
[1748878562673,3.93754854,2539.7,2539.2,4.7247586]
[1748878562902,5.52586293,2539.7,2539.3,4.559]
[1748878563206,11.5244795,2539.5,2538.9,0.8123]
[1748878563408,3.93798057,2539.4,2539.1,4.558]
[1748878563907,3.93798057,2539.4,2539.0,8.0]
[1748878564105,3.93809354,2539.3,2538.9,0.8123]
[1748878564304,7.58663041,2539.5,2539.0,4.558]
[1748878564607,1.81491439,2539.7,2539.0,4.558]
[1748878564787,3.93738432,2539.8,2539.3,3.93801051]
[1748878564987,0.42163852,2539.9,2539.4,4.72922272]
[1748878565203,0.42163852,2539.9,2539.6,3.93762797]
[1748878565404,0.02,2539.9,2539.8,4.72871789]
[1748878566178,0.02,2539.9,2539.8,12.72871789]
[1748878566487,0.02,2539.9,2539.8,14.85103454]
[1748878567210,0.02,2540.9,2540.8,0.8229]
[1748878567411,0.02,2540.9,2540.8,9.31466826]
[1748878567639,0.02,2540.9,2540.8,5.3789]
[1748878567927,0.02,2540.9,2540.8,0.8229]
[1748878568084,0.02,2540.9,2540.8,5.3789]
[1748878568423,0.02,2540.9,2540.8,9.31466826]
[1748878568647,0.02,2540.9,2540.8,5.3789]
[1748878568806,0.02,2540.9,2540.8,0.8229]
[1748878569006,0.02,2540.9,2540.8,5.3779]
[1748878570796,3.95561336,2540.9,2540.5,0.7918]
[1748878571135,0.80910433,2540.9,2540.6,4.553]
[1748878571501,0.02,2540.9,2540.6,8.48899389]
[1748878571695,0.02,2540.9,2540.7,3.97518278]
[1748878571900,0.02,2540.9,2540.7,3.93582647]
[1748878572096,0.02,2540.9,2540.6,8.48899598]
[1748878572296,0.02,2540.9,2540.5,0.7918]
[1748878572599,3.93601527,2540.7,2540.5,0.7918]
[1748878572798,0.39360153,2540.6,2540.2,0.7918]
[1748878573003,0.2466,2540.5,2539.7,0.7918]
[1748878573236,0.2466,2540.5,2539.7,4.72919172]
[1748878573433,3.93644162,2540.4,2539.8,4.551]
[1748878573664,3.93701185,2540.0,2539.7,0.7918]
[1748878573800,8.13663041,2540.4,2539.9,4.551]
[1748878574005,4.77494434,2540.3,2539.9,4.551]
[1748878574536,3.93670111,2540.2,2539.9,4.551]
[1748878574951,0.83832304,2540.3,2539.9,4.551]
[1748878575162,4.77487163,2540.3,2539.9,4.551]
[1748878575370,0.83832304,2540.3,2539.9,4.551]
[1748878575740,3.93711425,2540.0,2539.5,7.089]
[1748878575921,3.93710386,2540.0,2539.5,7.8683]
[1748878576121,0.2466,2540.0,2539.5,0.7793]
[1748878576322,3.93758122,2539.7,2539.3,0.7685]
[1748878576522,3.93747292,2539.7,2539.3,5.3175]
[1748878576763,0.55,2539.9,2539.4,3.93788866]
[1748878576921,3.93743963,2539.8,2539.3,5.3175]
[1748878577321,0.38565823,2539.8,2539.3,5.3175]
[1748878577545,3.93752197,2539.7,2539.3,5.3175]
[1748878577870,0.2466,2540.0,2538.8,4.75167908]
[1748878577871,3.93771257,2539.6,2538.8,4.75167908]
[1748878578163,3.93771257,2539.6,2539.1,3.93839697]
[1748878578919,7.83323041,2540.0,2539.2,0.7743]
[1748878579255,3.93716524,2539.9,2539.4,3.93782866]
[1748878579459,3.93716524,2539.9,2539.3,4.549]
[1748878579460,3.93716524,2539.9,2539.3,8.48700442]
[1748878580049,3.93716524,2539.9,2539.3,4.549]
[1748878580384,3.93732231,2539.8,2539.3,4.549]
[1748878580525,1.57074111,2539.9,2539.4,4.548]
[1748878580731,7.58663041,2539.7,2538.9,0.8218]
[1748878580930,0.2466,2539.5,2538.9,0.8218]
[1748878581235,3.93775017,2539.6,2539.0,8.48545678]
[1748878581649,3.93803538,2539.4,2538.9,4.76044177]
[1748878581821,0.55,2539.3,2538.7,0.8]
[1748878582025,3.93784769,2539.5,2538.8,3.93886875]
[1748878582228,3.93794085,2539.4,2538.9,3.93863163]
[1748878582467,3.93816963,2539.3,2538.8,3.93879708]
[1748878582639,0.2466,2539.6,2539.0,4.547]
[1748878582835,3.93832279,2539.2,2539.0,4.547]
[1748878583159,0.55,2539.0,2538.2,0.7659]
[1748878583375,3.93956277,2538.4,2538.2,0.7659]
[1748878583575,3.93956277,2538.4,2538.1,4.567]
[1748878583739,3.93944709,2538.5,2538.1,4.567]
[1748878584251,3.93926013,2538.6,2538.1,8.50693272]
[1748878584463,3.93926013,2538.6,2538.1,4.567]
[1748878584633,5.50550339,2538.6,2538.1,0.02]
[1748878584835,3.93979554,2538.3,2538.1,0.02]
[1748878585065,3.93979985,2538.2,2538.1,0.02]
[1748878585279,4.48971881,2538.3,2538.1,0.02]
[1748878585656,0.55,2538.3,2538.1,0.02]
[1748878585864,0.2466,2538.5,2538.1,0.02]
[1748878586062,2.54416396,2538.5,2538.1,0.02]
[1748878586271,3.93972444,2538.3,2538.1,0.02]
[1748878586455,3.93979985,2538.2,2538.1,0.02]
[1748878586779,8.13663041,2538.4,2538.1,0.02]
[1748878587153,3.93979985,2538.2,2538.1,0.02]
[1748878587364,8.13663041,2538.4,2538.1,0.02]
[1748878587676,4.99254632,2538.3,2538.1,0.02]
[1748878587977,1.05289297,2538.3,2538.1,0.02]
[1748878588276,4.58413431,2538.5,2538.1,0.02]
[1748878588712,0.55,2538.4,2538.1,0.02]
[1748878589180,4.48957264,2538.4,2538.1,0.02]
[1748878589347,5.39694326,2538.4,2538.1,0.02]
[1748878589549,0.3981353,2538.5,2538.1,0.02]
[1748878589751,3.93942152,2538.5,2538.1,0.02]
[1748878589980,7.58663041,2538.6,2538.1,0.02]
[1748878590180,3.93938569,2538.5,2538.1,0.02]
[1748878590485,5.0919873,2538.5,2538.1,0.02]
[1748878590672,3.93958702,2538.4,2538.1,0.02]
[1748878591074,5.09200269,2538.5,2538.1,0.02]
[1748878591389,4.48895704,2538.8,2538.2,3.9396586]
[1748878591786,3.93906157,2538.7,2538.3,4.544]
[1748878592484,3.93918984,2538.6,2538.3,4.544]
[1748878592686,3.93910587,2538.7,2538.3,4.544]
[1748878593184,3.93889839,2538.8,2538.4,0.7637]
[1748878593385,3.93904187,2538.7,2538.4,0.7637]
[1748878593591,5.48537929,2538.8,2538.4,0.7637]
[1748878593798,5.48537929,2538.8,2538.1,0.7837]
[1748878593799,3.93926638,2538.6,2538.1,0.7837]
[1748878593997,3.93972142,2538.3,2538.1,0.7837]
[1748878594295,1.54657203,2538.3,2538.1,0.02]
[1748878594590,3.93956895,2538.4,2538.1,0.02]
[1748878594789,3.93972713,2538.3,2538.1,0.02]
[1748878595104,11.91608268,2538.5,2538.1,0.02]
[1748878595105,0.39004828,2538.5,2538.1,0.02]
[1748878595322,0.39004828,2538.5,2538.1,0.05939542]
[1748878595473,4.13155766,2538.8,2538.3,3.9395688]
[1748878595804,0.55,2538.7,2538.2,0.7775]
[1748878596003,7.58663041,2538.5,2538.2,4.542]
[1748878596222,3.9395801,2538.4,2538.2,4.542]
[1748878596355,7.58663041,2538.5,2538.2,4.542]
[1748878596557,3.93908567,2538.7,2538.2,4.542]
[1748878596788,3.93958262,2538.4,2538.2,4.541]
[1748878596951,5.27113723,2538.7,2538.2,8.48072967]
[1748878597168,0.19079848,2538.8,2538.2,4.541]
[1748878597366,0.19757595,2539.1,2538.3,0.81689354]
[1748878597683,0.2466,2539.2,2538.3,0.81689354]
[1748878597684,11.5245955,2539.4,2538.9,3.93861916]
[1748878597880,0.18970948,2539.4,2538.9,8.47968175]
[1748878598197,7.58663041,2539.7,2538.9,4.541]
[1748878598405,3.93818534,2539.3,2538.9,4.541]
[1748878598611,3.93852988,2539.1,2538.8,0.7775]
[1748878598891,3.9387334,2538.9,2538.7,4.541]
[1748878599092,3.9389192,2538.8,2538.5,0.8246]
[1748878599296,3.93883221,2538.9,2538.6,4.54]
[1748878599500,3.9387819,2538.9,2538.6,4.54]
[1748878599659,0.55,2538.8,2538.3,0.7612]
[1748878599857,4.48893523,2538.8,2538.4,4.54]
[1748878600092,0.55,2538.8,2538.4,4.54]
[1748878600282,8.79762612,2539.6,2538.5,0.84409371]
[1748878600495,3.93811745,2539.3,2538.7,3.93893264]
[1748878600694,4.72593306,2539.2,2538.8,4.54]
[1748878600878,0.78761484,2539.2,2538.8,8.47878711]
[1748878601170,4.48819987,2539.3,2538.8,4.54]
[1748878601608,3.93824826,2539.2,2538.8,4.54]
[1748878601814,12.07543796,2538.9,2538.3,3.9395792]
[1748878602097,7.83323041,2539.3,2538.8,3.93886875]
[1748878602311,0.80292894,2539.2,2538.7,0.7655]
[1748878602513,4.74127524,2539.2,2538.8,4.539]
[1748878602804,3.93860498,2539.0,2538.8,4.539]
[1748878603012,0.55,2539.1,2538.7,4.538]
[1748878603211,0.2466,2539.3,2538.7,4.538]
[1748878603498,3.93769142,2539.6,2539.1,3.9383831]
[1748878603701,4.13539573,2539.6,2539.1,4.538]
[1748878603907,0.19776776,2539.6,2539.1,4.538]
[1748878604110,0.19776776,2539.6,2539.2,3.93818005]
[1748878604410,3.93792151,2539.5,2539.1,4.538]
[1748878604714,8.4185477,2539.6,2538.8,0.8108]
[1748878604862,3.93795039,2539.4,2539.0,4.537]
[1748878605059,3.9381192,2539.3,2539.0,4.537]
[1748878605284,3.9382834,2539.2,2538.8,0.8108]
[1748878605494,3.9382834,2539.2,2538.9,4.537]
[1748878605661,3.9382834,2539.2,2538.8,0.8108]
[1748878605993,3.93831756,2539.2,2538.9,4.537]
[1748878606669,11.77141491,2539.3,2538.9,4.537]
[1748878606866,1.57094165,2539.3,2538.9,4.537]
[1748878607086,3.93794281,2539.4,2538.9,8.47563637]
[1748878607291,0.55,2539.5,2538.9,4.537]
[1748878607478,4.48792387,2539.5,2538.9,8.47561743]
[1748878607796,3.93795457,2539.4,2538.9,8.47561743]
[1748878607996,3.93818398,2539.3,2538.9,4.537]
[1748878608198,0.84261221,2539.3,2538.9,4.537]
[1748878608712,0.55,2539.5,2538.9,4.537]
[1748878608878,0.55,2539.5,2538.8,0.8108]
[1748878609087,3.93822037,2539.3,2538.9,4.535]
[1748878609303,0.55,2539.5,2538.9,4.535]
[1748878609591,3.93793809,2539.4,2538.9,8.47371089]
[1748878610261,3.93795546,2539.4,2538.9,8.47363663]
[1748878610796,3.93831563,2539.2,2538.9,4.535]
[1748878611000,3.93832366,2539.2,2538.8,0.8108]
[1748878611183,11.5252591,2539.0,2538.6,0.7528]
[1748878611385,7.58663041,2539.3,2538.8,3.93875607]
[1748878611589,11.52476917,2539.3,2538.8,3.93875607]
[1748878611977,7.58663041,2539.3,2538.7,4.533]
[1748878612168,0.55,2539.3,2539.0,3.93853322]
[1748878612367,0.55,2539.3,2538.9,3.93862278]
[1748878612698,3.93810334,2539.3,2538.8,3.93878011]
[1748878613001,3.93810334,2539.3,2538.7,8.47193071]
[1748878613002,4.48801298,2539.4,2538.9,3.93870053]
[1748878613301,4.80533781,2539.3,2538.8,3.93877987]
[1748878613513,0.86724362,2539.3,2538.7,8.47195841]
[1748878613719,0.55,2539.4,2538.7,8.47190321]
[1748878614014,3.93813321,2539.3,2538.8,3.93875557]
[1748878614370,4.4880788,2539.4,2538.7,8.47196052]
[1748878614371,3.93825041,2539.2,2538.7,8.47196052]
[1748878614779,3.93825041,2539.2,2538.8,4.532]
[1748878615102,3.93833816,2539.2,2538.8,4.532]
[1748878615302,3.93841377,2539.1,2538.9,4.531]
[1748878615598,1.60131116,2539.2,2538.9,4.531]
[1748878616300,0.55,2539.4,2538.9,4.531]
[1748878616464,0.55,2539.4,2539.0,3.93842882]
[1748878616669,3.93809822,2539.3,2538.9,4.531]
[1748878616903,3.93831258,2539.2,2538.9,4.531]
[1748878617088,7.58663041,2539.3,2538.9,4.531]
[1748878617286,0.81366304,2539.2,2538.9,4.531]
[1748878617602,4.48800413,2539.4,2538.9,8.4696533]
[1748878617899,4.48794627,2539.4,2538.9,8.46963556]
[1748878618198,3.93794381,2539.4,2539.1,0.775]
[1748878618401,0.55,2539.5,2538.9,4.531]
[1748878618605,3.93824397,2539.3,2538.9,4.531]
[1748878618997,3.93825544,2539.2,2538.9,4.531]
[1748878620406,3.93823993,2539.3,2538.9,4.531]
[1748878620608,0.83319237,2539.4,2539.0,3.93849727]
[1748878620805,4.77117212,2539.4,2538.9,8.46964396]
[1748878621115,7.58663041,2539.0,2538.5,0.8174]
[1748878621420,3.93831807,2539.2,2538.7,3.93889804]
[1748878621720,1.07979237,2539.4,2538.6,4.528]
[1748878621891,1.07979237,2539.4,2538.9,3.93862684]
[1748878621892,4.77116508,2539.4,2538.9,3.93862684]
[1748878622091,0.47711651,2539.3,2539.0,9.21881708]
[1748878622478,0.83319237,2539.4,2539.0,9.21881708]
[1748878622694,3.93809884,2539.3,2539.0,5.2803]
[1748878623621,3.93824826,2539.2,2539.1,4.527]
[1748878623844,3.93843184,2539.1,2538.7,0.7586]
[1748878624133,4.48833579,2539.2,2538.8,4.527]
[1748878624295,2.23461804,2539.2,2538.8,4.527]